{"text_format":"1","workbook":"xlsx","n_sheets":3,"sheets":["Для заполнения"," Для заполнения 2","Лист3"],"not_rendered":{"charts":0,"images":0,"macros":0,"external_links":0,"defined_names":2,"comments":0,"pivot_tables":0},"unopened":[],"bounds":{"document_bytes":16777216,"sheet_cells":100000,"rows_first":2000,"rows_last":500,"rows_between":2000,"halvings":0,"cell_chars":16384,"cell_head_chars":4096},"cells_cut":0,"cells_raw":0,"read":"whole","date_system":"1900"}

{"sheet":"Для заполнения","index":0,"n_rows":20,"n_cols":12,"rows_kept":20,"cut":false,"hidden":false,"merged":[[0,0,0,8],[1,0,1,8],[17,1,17,2],[17,4,17,5],[19,0,20,2],[4,0,4,9],[6,0,6,9],[8,0,8,9],[15,0,15,4],[16,1,16,2],[16,4,16,5],[12,0,12,9]]}
["Форма перечня спортивной инфраструктуры всех форм собственности, независимо от их организационно-правовой формы, действующие и находящиеся на реконструкции или капитальном ремонте, отдельно стоящие или входящие в состав комплексных сооружений"]
["(информация о спортивной инфраструктуре, их площади, ЕПС, ФЗ и МС должна соответствовать сведениям, указанным в разделе 3 формы № 1 –ФК)"]
[]
["№ п/п","Наименование спортивного сооружения с указанием принадлежности","Адрес спортивного сооружения","длина","ширина","Площадь спортивного сооружения, м2 (указывается площадь спортивных залов, плоскостных спортивных сооружений, площадь зеркала воды плавательных бассейнов)","Единовременная пропускная способность (ЕПС) ","Загруженность (ФЗ), чел.    ","мощность (МС), чел","собственность (муниципальная, региональная, федеральная, иная "]
["СПОРТИВНЫЕ ЗАЛЫ"]
[1,"\"Зал бокса\"  при МАУ  \"Спортивная школа\"","618250, Пермский край, ул.им.газ. \"Правда\" 38а",23.55,11.65,{"$f":"D6*E6","v":274.35750000000002},15,{"$f":"(45*3*2+15*6*2+25*2.5*6)*(52-13)","v":32175},{"$f":"15*8*(365-90)","v":33000},"муниципальная",{"$f":"H6/I6*100","v":97.5},"минус 3 мес карантина "]
["КРЫТЫЕ ЛЕДОВЫЕ КАТКИ"]
[2,"\"Ледовая Арена\" при МАУ  \"Спортивная школа\"","61825, Пермский край, г. Губаха, пер. Мечты, 3",56,28,{"$f":"D8*E8","v":1568},{"$f":"(80+30+30+8)/4","v":37},{"$f":"1949*(52-13)","v":76011},{"$f":"G8*11*(365-90)","v":111925},"муниципальная",{"$f":"H8/I8*100","v":67.912441366986826},"минус 3 мес карантина "]
["ДРУГИЕ"]
[3,"Помещение для занятий ОФП при МАУ  \"Спортивная школа\"","618250, Пермский край, пр. Ленина 63",14.16,5.5,{"$f":"D10*E10","v":77.88},12,{"$f":"70*1*6*(52-13)","v":16380},{"$f":"G10*6*(365-90)","v":19800},"муниципальная",82.727272727272734,"минус 3 мес карантина "]
[4,"Помещение для занятий ОФП при МАУ  \"Спортивная школа\"","618250, Пермский край, пр. Ленина 63",16.68,5.5,{"$f":"D11*E11","v":91.74},12,{"$f":"70*1*6*(52-13)","v":16380},{"$f":"G11*6*(365-90)","v":19800},"муниципальная",82.727272727272734,"минус 3 мес карантина "]
[5,"Помещение для занятий на силовых тренажерах при МАУ  \"Спортивная школа\"","618250, Пермский край, пр. Ленина 63",11.68,5.51,64.356799999999993,18,{"$f":"20*2*7*(52-13)","v":10920},{"$f":"G12*4*(365-52-90)","v":16056},"муниципальная",68.011958146487288,"минус 3 мес карантина "]
["ОБЪЕКТЫ ГОРОДСКОЙ И РЕКРЕАЦИОННОЙ ИНФРАСТРУКТУРЫ, ПРИСПОСОБЛЕННЫЕ ДЛЯ ЗАНЯТИЙ ФИЗИЧЕСКОЙ КУЛЬТУРОЙ И СПОРТОМ  "]
[6,"Уличная площадка для занятий физической культурой при Ледовой арене","61825, Пермский край, г. Губаха, пер. Мечты, 3",6,5.5,{"$f":"D14*E14","v":33},17,{"$f":"30*2*7*(52-13)","v":16380},{"$f":"17*8*(365-90)","v":37400},"муниципальная",{"$f":"H14/I14*100","v":43.796791443850267},"минус 3 мес карантина "]
[7,"Уличная площадка для занятий физической культурой при зале бокса ","618250, Пермский край, ул.им.газ. \"Правда\" 38а",15,10,{"$f":"D15*E15","v":150},17,{"$f":"30*2*7*(52-13)","v":16380},{"$f":"17*8*(365-90)","v":37400},"муниципальная",43.796791443850267,"минус 3 мес карантина "]
["ИТОГО",null,null,null,null,{"$f":"F6+F8+F10+F11+F12","v":2076.3343},{"$f":"G6+G8+G10+G11+G12","v":94},151866,200581,null,75.713053579351993]
[null,"Директор МАУ \"Спортивная школа\"",null,null,"К.В. Макаров"]
[null,"(должность)  ",null,null,"(Ф.И.О.)  ",null,null,"(подпись)"]
[]
["ФИО исполнителя, телефон (с кодом)",null,null,"Мажитова И.Р. 8-34-248-333-07"]

{"sheet":" Для заполнения 2","index":1,"n_rows":15,"n_cols":12,"rows_kept":15,"cut":false,"hidden":false,"merged":[[9,4,9,5],[10,1,10,2],[10,4,10,5],[14,0,15,2],[0,12,5,45],[4,0,4,11],[1,0,1,3],[6,0,6,1],[7,1,7,2],[8,1,8,2],[9,1,9,2],[14,3,15,4],[0,0,0,11]]}
["Крупные спортивные объекты на территории Губахинского городского округа  Пермского края"]
[]
[]
["№ п/п","Наименование спортивного сооружения с указанием принадлежности","Адрес спортивного сооружения","Единовременная пропускная способность (ЕПС) ","собственность (муниципальная, региональная, федеральная, иная ","Состояние объекта (удовлетворительное, аварийное, отличное)","Дата ввода объекта и дата последней реконструкции объекта","Категория опасности (в соотвествии с паспортом безопасности)","Дата утверждения паспорта безопасности  ","Доступная среда для маломобильных категорий населения (обеспеченность объекта спорта необходимым инвентарем оборудованием, наличие пандуса)","Включение объекта во Всероссийский реестр объектов сопрта(указать дату включения)","Контактные данные руководителя объекта ( номер телефона, эл. почта)"]
["КРЫТЫЕ КАТКИ"]
[1,"ледовая арена ","61825, Пермский край, г. Губаха, пер. Мечты, 3",{"$f":"(80+30+30+8)/4","v":37},"муниципальная","отличное","2019-04-18","2 категория","2019-06-10","доступна для моломобильных групп, пандус имеется","2019-10-08","8-34-24-457-02, 40675@dk.ru"]
["ИТОГО"]
[]
[]
[null,"Директор МАУ  \"Спортивная школа\"",null,null,"К.В. Макаров"]
[null,"(должность)  ",null,null,"(Ф.И.О.)  ",null,null,"(подпись)"]
[]
[]
[]
["ФИО исполнителя, телефон (с кодом)",null,null,"Мажитова И.Р. 8-34-248-333-07"]

{"sheet":"Лист3","index":2,"n_rows":0,"n_cols":0,"rows_kept":0,"cut":false,"hidden":false,"merged":[]}